[Event "January 9 Early 2024"]
[Site "https://www.chess.com"]
[Date "2024.01.11"]
[Round "8"]
[White "Nepomniachtchi, Ian"]
[Black "Giri, Anish"]
[Result "1/2-1/2"]
[Board "77"]
[TimeControl "180+1"]
[WhiteFideId "4168119"]
[BlackFideId "24116068"]
[WhiteElo "3125"]
[BlackElo "3013"]
[WhiteTeam "RUS"]
[BlackTeam "NED"]
[WhiteClock "0:01:06"]
[BlackClock "0:00:07"]

1. e4 {[%clk 0:03:00]}  e5 {[%clk 0:03:00]} 2. f4 {[%clk 0:03:00]}  exf4 {[%clk 0:02:59]} 3. Nf3 {[%clk 0:03:00]}  Nf6 {[%clk 0:02:59]} 4. e5 {[%clk 0:02:59]}  Nh5 {[%clk 0:02:59]} 5. d4 {[%clk 0:03:00]}  d5 {[%clk 0:02:56]} 6. c4 {[%clk 0:03:00]}  Bb4+ {[%clk 0:02:32]} 7. Nc3 {[%clk 0:02:59]}  O-O {[%clk 0:02:29]} 8. cxd5 {[%clk 0:02:58]}  Qxd5 {[%clk 0:02:28]} 9. Be2 {[%clk 0:02:59]}  b6 {[%clk 0:02:06]} 10. O-O {[%clk 0:02:58]}  Bxc3 {[%clk 0:02:07]} 11. bxc3 {[%clk 0:02:59]}  Ba6 {[%clk 0:02:07]} 12. Bxa6 {[%clk 0:02:27]}  Nxa6 {[%clk 0:02:07]} 13. Ng5 {[%clk 0:02:27]}  g6 {[%clk 0:01:53]} 14. Bxf4 {[%clk 0:02:26]}  f6 {[%clk 0:01:38]} 15. Nh3 {[%clk 0:02:26]}  fxe5 {[%clk 0:01:03]} 16. Bxe5 {[%clk 0:02:25]}  c5 {[%clk 0:00:21]} 17. Qd2 {[%clk 0:02:16]}  cxd4 {[%clk 0:00:20]} 18. cxd4 {[%clk 0:02:17]}  Nc5 {[%clk 0:00:20]} 19. g4 {[%clk 0:02:07]}  Nd7 {[%clk 0:00:11]} 20. Qe3 {[%clk 0:01:42]}  Nxe5 {[%clk 0:00:07]} 21. dxe5 {[%clk 0:01:42]}  Ng7 {[%clk 0:00:07]} 22. Nf4 {[%clk 0:01:41]}  Qc5 {[%clk 0:00:07]} 23. Qxc5 {[%clk 0:01:39]}  bxc5 {[%clk 0:00:08]} 24. Nd5 {[%clk 0:01:40]}  Ne6 {[%clk 0:00:06]} 25. Rf6 {[%clk 0:01:33]}  Rxf6 {[%clk 0:00:06]} 26. exf6 {[%clk 0:01:25]}  Rd8 {[%clk 0:00:05]} 27. Re1 {[%clk 0:01:13]}  Kf7 {[%clk 0:00:05]} 28. Re5 {[%clk 0:01:12]}  c4 {[%clk 0:00:05]} 29. g5 {[%clk 0:01:12]}  h6 {[%clk 0:00:05]} 30. h4 {[%clk 0:01:12]}  hxg5 {[%clk 0:00:06]} 31. hxg5 {[%clk 0:01:13]}  Rh8 {[%clk 0:00:06]} 32. Nc7 {[%clk 0:01:13]}  Nxc7 {[%clk 0:00:03]} 33. Re7+ {[%clk 0:01:13]}  Kf8 {[%clk 0:00:04]} 34. Rxc7 {[%clk 0:01:14]}  Rh5 {[%clk 0:00:05]} 35. Rc5 {[%clk 0:01:12]}  c3 {[%clk 0:00:05]} 36. Kf2 {[%clk 0:01:09]}  c2 {[%clk 0:00:05]} 37. Ke3 {[%clk 0:01:09]}  Rxg5 {[%clk 0:00:06]} 38. Rxc2 {[%clk 0:01:09]}  Ra5 {[%clk 0:00:06]} 39. Rc7 {[%clk 0:01:07]}  Rxa2 {[%clk 0:00:05]} 40. Kf4 {[%clk 0:01:06]}  Ra5 {[%clk 0:00:06]} 41. Kg4 {[%clk 0:01:05]}  Rf5 {[%clk 0:00:04]} 42. Rxa7 {[%clk 0:01:04]}  Rxf6 {[%clk 0:00:05]} 43. Rb7 {[%clk 0:01:05]}  Re6 {[%clk 0:00:05]} 44. Ra7 {[%clk 0:01:05]}  Kg8 {[%clk 0:00:05]} 45. Rb7 {[%clk 0:01:05]}  Kf8 {[%clk 0:00:06]} 46. Ra7 {[%clk 0:01:06]}  Kg8 {[%clk 0:00:07]} 47. Rb7 {[%clk 0:01:06]}  Kf8 {[%clk 0:00:07]} 1/2-1/2

[Event "January 9 Early 2024"]
[Site "https://www.chess.com"]
[Date "2024.01.11"]
[Round "8"]
[White "Alinasab, Mobina"]
[Black "Timerkhanov, Alexander"]
[Result "0-1"]
[Board "79"]
[TimeControl "180+1"]
[WhiteFideId "12528897"]
[BlackFideId "24177938"]
[WhiteElo "2518"]
[BlackElo "2660"]
[WhiteTeam "IRI"]
[BlackTeam "RUS"]
[WhiteClock "0:00:22"]
[BlackClock "0:01:03"]

1. Nf3 {[%clk 0:03:00]}  d5 {[%clk 0:02:58]} 2. g3 {[%clk 0:03:01]}  Bg4 {[%clk 0:02:56]} 3. Bg2 {[%clk 0:03:01]}  Nd7 {[%clk 0:02:56]} 4. d4 {[%clk 0:03:00]}  e6 {[%clk 0:02:54]} 5. O-O {[%clk 0:03:00]}  Ngf6 {[%clk 0:02:54]} 6. b3 {[%clk 0:03:00]}  a5 {[%clk 0:02:52]} 7. a3 {[%clk 0:02:59]}  a4 {[%clk 0:02:52]} 8. b4 {[%clk 0:02:59]}  Nb6 {[%clk 0:02:52]} 9. Nbd2 {[%clk 0:03:00]}  Bxf3 {[%clk 0:02:51]} 10. Bxf3 {[%clk 0:02:59]}  Be7 {[%clk 0:02:50]} 11. Bb2 {[%clk 0:02:59]}  O-O {[%clk 0:02:49]} 12. Rc1 {[%clk 0:02:59]}  c6 {[%clk 0:02:48]} 13. c4 {[%clk 0:02:59]}  dxc4 {[%clk 0:02:46]} 14. Nxc4 {[%clk 0:03:00]}  Nxc4 {[%clk 0:02:45]} 15. Rxc4 {[%clk 0:03:00]}  Nd5 {[%clk 0:02:46]} 16. Rc1 {[%clk 0:02:57]}  Bf6 {[%clk 0:02:46]} 17. e4 {[%clk 0:02:57]}  Nb6 {[%clk 0:02:46]} 18. Qd3 {[%clk 0:02:51]}  Qd7 {[%clk 0:02:46]} 19. Rfd1 {[%clk 0:02:48]}  Rfd8 {[%clk 0:02:46]} 20. Qe2 {[%clk 0:02:35]}  Qc7 {[%clk 0:02:31]} 21. e5 {[%clk 0:02:01]}  Be7 {[%clk 0:02:30]} 22. Bg2 {[%clk 0:01:59]}  Qd7 {[%clk 0:02:22]} 23. f4 {[%clk 0:01:57]}  Nd5 {[%clk 0:02:23]} 24. g4 {[%clk 0:01:55]}  b5 {[%clk 0:02:19]} 25. Rf1 {[%clk 0:01:25]}  Rac8 {[%clk 0:02:16]} 26. f5 {[%clk 0:01:24]}  Bg5 {[%clk 0:02:13]} 27. Rce1 {[%clk 0:01:18]}  Nf4 {[%clk 0:02:09]} 28. Qe4 {[%clk 0:01:15]}  Nxg2 {[%clk 0:02:01]} 29. Kxg2 {[%clk 0:01:16]}  Qd5 {[%clk 0:02:00]} 30. fxe6 {[%clk 0:01:16]}  fxe6 {[%clk 0:02:00]} 31. Kg3 {[%clk 0:01:12]}  Rf8 {[%clk 0:01:57]} 32. Rxf8+ {[%clk 0:01:09]}  Rxf8 {[%clk 0:01:55]} 33. Qxd5 {[%clk 0:01:10]}  cxd5 {[%clk 0:01:55]} 34. h4 {[%clk 0:01:10]}  Bf4+ {[%clk 0:01:53]} 35. Kg2 {[%clk 0:01:10]}  Rc8 {[%clk 0:01:49]} 36. Re2 {[%clk 0:01:10]}  h6 {[%clk 0:01:46]} 37. Kf3 {[%clk 0:00:56]}  g5 {[%clk 0:01:46]} 38. hxg5 {[%clk 0:00:52]}  hxg5 {[%clk 0:01:47]} 39. Rf2 {[%clk 0:00:48]}  Kh7 {[%clk 0:01:43]} 40. Ke2 {[%clk 0:00:46]}  Kg6 {[%clk 0:01:28]} 41. Kd3 {[%clk 0:00:46]}  Rh8 {[%clk 0:01:20]} 42. Rc2 {[%clk 0:00:46]}  Rh3+ {[%clk 0:01:18]} 43. Ke2 {[%clk 0:00:44]}  Rg3 {[%clk 0:01:18]} 44. Kf2 {[%clk 0:00:40]}  Rb3 {[%clk 0:01:14]} 45. Ke2 {[%clk 0:00:32]}  Rg3 {[%clk 0:01:07]} 46. Kf2 {[%clk 0:00:32]}  Rxg4 {[%clk 0:01:07]} 47. Rc5 {[%clk 0:00:32]}  Rh4 {[%clk 0:01:05]} 48. Kf1 {[%clk 0:00:22]}  Rh1+ {[%clk 0:01:03]} 0-1

[Event "January 9 Early 2024"]
[Site "https://www.chess.com"]
[Date "2024.01.11"]
[Round "8"]
[White "Teillet, Benoit"]
[Black "Goncalves, Samuel Jesus P"]
[Result "0-1"]
[Board "81"]
[TimeControl "180+1"]
[WhiteFideId "616591"]
[BlackFideId "1945130"]
[WhiteElo "2254"]
[BlackElo "2414"]
[WhiteTeam "FRA"]
[BlackTeam "POR"]
[WhiteClock "0:00:19"]
[BlackClock "0:00:17"]

1. b4 {[%clk 0:02:59]}  c6 {[%clk 0:02:58]} 2. Bb2 {[%clk 0:02:55]}  a5 {[%clk 0:02:59]} 3. a3 {[%clk 0:02:55]}  axb4 {[%clk 0:02:56]} 4. axb4 {[%clk 0:02:55]}  Rxa1 {[%clk 0:02:57]} 5. Bxa1 {[%clk 0:02:56]}  Qb6 {[%clk 0:02:57]} 6. c3 {[%clk 0:02:52]}  d5 {[%clk 0:02:58]} 7. e3 {[%clk 0:02:52]}  e5 {[%clk 0:02:56]} 8. Nf3 {[%clk 0:02:50]}  Bd6 {[%clk 0:02:52]} 9. Be2 {[%clk 0:02:50]}  e4 {[%clk 0:02:45]} 10. Nd4 {[%clk 0:02:49]}  Ne7 {[%clk 0:02:45]} 11. O-O {[%clk 0:02:46]}  O-O {[%clk 0:02:45]} 12. d3 {[%clk 0:02:45]}  exd3 {[%clk 0:02:43]} 13. Bxd3 {[%clk 0:02:44]}  Nd7 {[%clk 0:02:41]} 14. Nd2 {[%clk 0:02:42]}  Ne5 {[%clk 0:02:41]} 15. Be2 {[%clk 0:02:41]}  Nf5 {[%clk 0:02:24]} 16. Qc2 {[%clk 0:02:36]}  Nxd4 {[%clk 0:02:21]} 17. exd4 {[%clk 0:02:36]}  Ng6 {[%clk 0:02:15]} 18. Bd3 {[%clk 0:02:32]}  Re8 {[%clk 0:02:09]} 19. Nf3 {[%clk 0:02:31]}  Bg4 {[%clk 0:02:08]} 20. Ng5 {[%clk 0:02:23]}  Bf4 {[%clk 0:01:45]} 21. h3 {[%clk 0:02:05]}  Bh5 {[%clk 0:01:15]} 22. Nxf7 {[%clk 0:01:53]}  Kxf7 {[%clk 0:01:13]} 23. g4 {[%clk 0:01:54]}  Qd8 {[%clk 0:01:06]} 24. gxh5 {[%clk 0:01:49]}  Qg5+ {[%clk 0:01:05]} 25. Kh1 {[%clk 0:01:49]}  Qxh5 {[%clk 0:01:05]} 26. Bxg6+ {[%clk 0:01:41]}  hxg6 {[%clk 0:01:05]} 27. Kg2 {[%clk 0:01:39]}  Qg5+ {[%clk 0:01:02]} 28. Kf3 {[%clk 0:01:33]}  Bd6 {[%clk 0:00:57]} 29. Qc1 {[%clk 0:01:25]}  Qf5+ {[%clk 0:00:51]} 30. Kg2 {[%clk 0:01:23]}  Re2 {[%clk 0:00:32]} 31. Bb2 {[%clk 0:00:58]}  Qe4+ {[%clk 0:00:31]} 32. Kg1 {[%clk 0:00:55]}  Qf3 {[%clk 0:00:20]} 33. Qd1 {[%clk 0:00:20]}  Qxh3 {[%clk 0:00:17]} 34. f4 {[%clk 0:00:19]}  Qh2# {[%clk 0:00:17]} 0-1

[Event "January 9 Early 2024"]
[Site "https://www.chess.com"]
[Date "2024.01.11"]
[Round "8"]
[White "Rohith Krishna S"]
[Black "Ozates, Tuna"]
[Result "1-0"]
[Board "82"]
[TimeControl "180+1"]
[WhiteFideId "46617051"]
[BlackFideId "6354521"]
[WhiteElo "2839"]
[BlackElo "2672"]
[WhiteTeam "IND"]
[BlackTeam "TUR"]
[WhiteClock "0:00:42"]
[BlackClock "0:00:08"]

1. e4 {[%clk 0:03:00]}  c5 {[%clk 0:03:00]} 2. Nf3 {[%clk 0:02:59]}  Nc6 {[%clk 0:03:01]} 3. Bb5 {[%clk 0:02:59]}  g6 {[%clk 0:03:00]} 4. d4 {[%clk 0:02:57]}  cxd4 {[%clk 0:02:59]} 5. O-O {[%clk 0:02:56]}  Bg7 {[%clk 0:02:59]} 6. c3 {[%clk 0:02:53]}  d3 {[%clk 0:02:57]} 7. Bxd3 {[%clk 0:02:50]}  Nf6 {[%clk 0:02:57]} 8. h3 {[%clk 0:02:49]}  O-O {[%clk 0:02:57]} 9. e5 {[%clk 0:02:48]}  Ne8 {[%clk 0:02:53]} 10. Re1 {[%clk 0:02:44]}  d6 {[%clk 0:02:50]} 11. exd6 {[%clk 0:02:44]}  Nxd6 {[%clk 0:02:51]} 12. Bg5 {[%clk 0:02:44]}  Qc7 {[%clk 0:02:48]} 13. Nbd2 {[%clk 0:02:44]}  e5 {[%clk 0:02:48]} 14. Nc4 {[%clk 0:02:41]}  Be6 {[%clk 0:02:41]} 15. Ncxe5 {[%clk 0:02:39]}  Nxe5 {[%clk 0:02:39]} 16. Nxe5 {[%clk 0:02:39]}  f6 {[%clk 0:02:30]} 17. Nf3 {[%clk 0:02:33]}  fxg5 {[%clk 0:02:09]} 18. Rxe6 {[%clk 0:02:28]}  Rad8 {[%clk 0:02:09]} 19. Qe2 {[%clk 0:02:22]}  Nf7 {[%clk 0:01:37]} 20. Bc4 {[%clk 0:02:16]}  Kh8 {[%clk 0:01:37]} 21. Re7 {[%clk 0:01:59]}  Rd7 {[%clk 0:01:37]} 22. Rxd7 {[%clk 0:01:58]}  Qxd7 {[%clk 0:01:38]} 23. Rd1 {[%clk 0:01:58]}  Qf5 {[%clk 0:01:31]} 24. Rd5 {[%clk 0:01:51]}  Qb1+ {[%clk 0:01:29]} 25. Kh2 {[%clk 0:01:49]}  h6 {[%clk 0:01:30]} 26. Rd7 {[%clk 0:01:45]}  Qf5 {[%clk 0:01:28]} 27. Rxb7 {[%clk 0:01:37]}  Nd6 {[%clk 0:01:10]} 28. Rc7 {[%clk 0:01:08]}  Qf4+ {[%clk 0:01:08]} 29. Kg1 {[%clk 0:01:08]}  Re8 {[%clk 0:01:05]} 30. Qd3 {[%clk 0:01:03]}  Qc1+ {[%clk 0:00:57]} 31. Qf1 {[%clk 0:01:02]}  Qxb2 {[%clk 0:00:51]} 32. Bd3 {[%clk 0:01:01]}  Qb6 {[%clk 0:00:45]} 33. Rd7 {[%clk 0:01:01]}  Bxc3 {[%clk 0:00:41]} 34. Bxg6 {[%clk 0:01:00]}  Re6 {[%clk 0:00:32]} 35. Qd3 {[%clk 0:00:55]}  Qc6 {[%clk 0:00:13]} 36. Rd8+ {[%clk 0:00:44]}  Kg7 {[%clk 0:00:12]} 37. Bh7 {[%clk 0:00:45]}  Bf6 {[%clk 0:00:08]} 38. Qg6# {[%clk 0:00:42]} 1-0

[Event "January 9 Early 2024"]
[Site "https://www.chess.com"]
[Date "2024.01.11"]
[Round "8"]
[White "Shubenkova, Veronika"]
[Black "Shuvalova, Polina"]
[Result "1-0"]
[Board "85"]
[TimeControl "180+1"]
[WhiteFideId "44124040"]
[BlackFideId "24171760"]
[WhiteElo "2601"]
[BlackElo "2736"]
[WhiteTeam "RUS"]
[BlackTeam "RUS"]
[WhiteClock "0:00:46"]
[BlackClock "0:00:13"]

1. d4 {[%clk 0:03:00]}  Nf6 {[%clk 0:02:59]} 2. e3 {[%clk 0:03:01]}  d5 {[%clk 0:02:59]} 3. f4 {[%clk 0:03:02]}  Bf5 {[%clk 0:02:54]} 4. Nf3 {[%clk 0:03:03]}  e6 {[%clk 0:02:53]} 5. Bd3 {[%clk 0:03:03]}  Bd6 {[%clk 0:02:49]} 6. O-O {[%clk 0:03:03]}  O-O {[%clk 0:02:50]} 7. c3 {[%clk 0:03:02]}  c5 {[%clk 0:02:50]} 8. Qe2 {[%clk 0:03:02]}  Nc6 {[%clk 0:02:50]} 9. Nbd2 {[%clk 0:03:01]}  h6 {[%clk 0:02:42]} 10. Ne5 {[%clk 0:03:00]}  Rc8 {[%clk 0:02:34]} 11. h3 {[%clk 0:02:58]}  Nd7 {[%clk 0:02:19]} 12. g4 {[%clk 0:02:53]}  Bxd3 {[%clk 0:02:19]} 13. Nxd3 {[%clk 0:02:50]}  f5 {[%clk 0:02:15]} 14. Qg2 {[%clk 0:02:41]}  Nf6 {[%clk 0:01:57]} 15. Nf3 {[%clk 0:02:33]}  Ne4 {[%clk 0:01:53]} 16. gxf5 {[%clk 0:02:25]}  Rxf5 {[%clk 0:01:41]} 17. Nd2 {[%clk 0:02:16]}  cxd4 {[%clk 0:01:34]} 18. Nxe4 {[%clk 0:02:11]}  dxe4 {[%clk 0:01:34]} 19. Qxe4 {[%clk 0:02:11]}  dxc3 {[%clk 0:01:34]} 20. Qxe6+ {[%clk 0:02:05]}  Rf7 {[%clk 0:01:34]} 21. bxc3 {[%clk 0:01:59]}  Bb8 {[%clk 0:01:20]} 22. Ne5 {[%clk 0:01:50]}  Bxe5 {[%clk 0:01:09]} 23. fxe5 {[%clk 0:01:50]}  Qe7 {[%clk 0:01:08]} 24. Qxc8+ {[%clk 0:01:49]}  Kh7 {[%clk 0:01:05]} 25. Rxf7 {[%clk 0:01:46]}  Qxf7 {[%clk 0:01:06]} 26. Qg4 {[%clk 0:01:43]}  Nxe5 {[%clk 0:00:45]} 27. Qe4+ {[%clk 0:01:43]}  Ng6 {[%clk 0:00:45]} 28. Ba3 {[%clk 0:01:40]}  Qf6 {[%clk 0:00:41]} 29. Rf1 {[%clk 0:01:30]}  Qxc3 {[%clk 0:00:33]} 30. Bd6 {[%clk 0:01:24]}  Qd2 {[%clk 0:00:30]} 31. Be5 {[%clk 0:01:14]}  Qxa2 {[%clk 0:00:23]} 32. h4 {[%clk 0:01:10]}  h5 {[%clk 0:00:18]} 33. Qf5 {[%clk 0:01:01]}  Qe2 {[%clk 0:00:17]} 34. Bf4 {[%clk 0:00:56]}  b5 {[%clk 0:00:13]} 35. Rf2 {[%clk 0:00:50]}  Qd1+ {[%clk 0:00:13]} 36. Kh2 {[%clk 0:00:46]}  b4 {[%clk 0:00:13]} 37. Rg2 {[%clk 0:00:46]} 1-0

[Event "January 9 Early 2024"]
[Site "https://www.chess.com"]
[Date "2024.01.11"]
[Round "8"]
[White "Smirnov, Mark"]
[Black "Paikens, Reinis"]
[Result "1-0"]
[Board "86"]
[TimeControl "180+1"]
[WhiteFideId "13764594"]
[BlackFideId "11624078"]
[WhiteElo "2534"]
[BlackElo "2278"]
[WhiteTeam "KAZ"]
[BlackTeam "LAT"]
[WhiteClock "0:00:03"]
[BlackClock "0:01:07"]

1. e4 {[%clk 0:03:00]}  c5 {[%clk 0:02:58]} 2. Nf3 {[%clk 0:02:58]}  Nc6 {[%clk 0:02:58]} 3. Bb5 {[%clk 0:02:57]}  g6 {[%clk 0:02:56]} 4. Bxc6 {[%clk 0:02:56]}  bxc6 {[%clk 0:02:53]} 5. d3 {[%clk 0:02:50]}  Bg7 {[%clk 0:02:53]} 6. O-O {[%clk 0:02:48]}  d6 {[%clk 0:02:53]} 7. c3 {[%clk 0:02:42]}  e5 {[%clk 0:02:53]} 8. h3 {[%clk 0:02:39]}  Ne7 {[%clk 0:02:52]} 9. d4 {[%clk 0:02:37]}  cxd4 {[%clk 0:02:52]} 10. cxd4 {[%clk 0:02:37]}  O-O {[%clk 0:02:51]} 11. dxe5 {[%clk 0:02:36]}  dxe5 {[%clk 0:02:52]} 12. Be3 {[%clk 0:02:24]}  Ba6 {[%clk 0:02:40]} 13. Qxd8 {[%clk 0:02:17]}  Rfxd8 {[%clk 0:02:40]} 14. Rc1 {[%clk 0:02:16]}  f5 {[%clk 0:02:31]} 15. Nbd2 {[%clk 0:01:59]}  Bf6 {[%clk 0:02:21]} 16. Bc5 {[%clk 0:01:36]}  Rac8 {[%clk 0:02:18]} 17. Bxa7 {[%clk 0:01:32]}  Kf7 {[%clk 0:02:15]} 18. Bc5 {[%clk 0:01:12]}  Bd3 {[%clk 0:02:14]} 19. Re1 {[%clk 0:01:04]}  f4 {[%clk 0:02:05]} 20. Rec1 {[%clk 0:00:42]}  g5 {[%clk 0:02:05]} 21. Ne1 {[%clk 0:00:37]}  h5 {[%clk 0:02:03]} 22. Nxd3 {[%clk 0:00:35]}  Rxd3 {[%clk 0:02:04]} 23. Nc4 {[%clk 0:00:35]}  Ke6 {[%clk 0:01:53]} 24. Nb6 {[%clk 0:00:21]}  Rb8 {[%clk 0:01:41]} 25. a4 {[%clk 0:00:17]}  Ng6 {[%clk 0:01:36]} 26. a5 {[%clk 0:00:15]}  g4 {[%clk 0:01:31]} 27. a6 {[%clk 0:00:15]}  gxh3 {[%clk 0:01:29]} 28. a7 {[%clk 0:00:15]}  Rg8 {[%clk 0:01:26]} 29. a8=Q {[%clk 0:00:14]}  Rxa8 {[%clk 0:01:26]} 30. Rxa8 {[%clk 0:00:15]}  Nh4 {[%clk 0:01:26]} 31. gxh3 {[%clk 0:00:10]}  Nf3+ {[%clk 0:01:26]} 32. Kg2 {[%clk 0:00:08]}  Nh4+ {[%clk 0:01:26]} 33. Kg1 {[%clk 0:00:07]}  Nf3+ {[%clk 0:01:26]} 34. Kf1 {[%clk 0:00:06]}  Rd2 {[%clk 0:01:25]} 35. Rc8 {[%clk 0:00:03]}  Nh2+ {[%clk 0:01:25]} 36. Ke1 {[%clk 0:00:03]}  Nf3+ {[%clk 0:01:24]} 37. Kf1 {[%clk 0:00:04]}  Nh2+ {[%clk 0:01:25]} 38. Kg2 {[%clk 0:00:04]}  Ng4 {[%clk 0:01:16]} 39. Rxc6+ {[%clk 0:00:03]}  Kf7 {[%clk 0:01:16]} 40. hxg4 {[%clk 0:00:04]}  hxg4 {[%clk 0:01:15]} 41. Nd5 {[%clk 0:00:03]}  Bg5 {[%clk 0:01:14]} 42. Rh1 {[%clk 0:00:03]}  Rxb2 {[%clk 0:01:10]} 43. Rh7+ {[%clk 0:00:03]}  Kg8 {[%clk 0:01:10]} 44. Rd7 {[%clk 0:00:03]}  f3+ {[%clk 0:01:10]} 45. Kg3 {[%clk 0:00:03]}  Rb8 {[%clk 0:01:08]} 46. Rg6+ {[%clk 0:00:03]}  Kh8 {[%clk 0:01:07]} 47. Rxg5 {[%clk 0:00:03]}  Rg8 {[%clk 0:01:07]} 48. Rh5# {[%clk 0:00:03]} 1-0

[Event "January 9 Early 2024"]
[Site "https://www.chess.com"]
[Date "2024.01.11"]
[Round "8"]
[White "Leiva, Gianmarco"]
[Black "Madaminov, Mukhiddin"]
[Result "0-1"]
[Board "88"]
[TimeControl "180+1"]
[WhiteFideId "3804399"]
[BlackFideId "14210703"]
[WhiteElo "2703"]
[BlackElo "2859"]
[WhiteTeam "PER"]
[BlackTeam "UZB"]
[WhiteClock "0:00:02"]
[BlackClock "0:01:04"]

1. d4 {[%clk 0:03:00]}  e6 {[%clk 0:02:59]} 2. Nf3 {[%clk 0:03:01]}  Nf6 {[%clk 0:02:58]} 3. Bf4 {[%clk 0:03:01]}  b6 {[%clk 0:02:50]} 4. e3 {[%clk 0:03:02]}  Bb7 {[%clk 0:02:51]} 5. Nbd2 {[%clk 0:03:01]}  g6 {[%clk 0:02:49]} 6. c3 {[%clk 0:03:00]}  Bg7 {[%clk 0:02:49]} 7. Bd3 {[%clk 0:03:00]}  O-O {[%clk 0:02:48]} 8. O-O {[%clk 0:02:59]}  d6 {[%clk 0:02:48]} 9. Qe2 {[%clk 0:02:58]}  Nbd7 {[%clk 0:02:46]} 10. Ba6 {[%clk 0:02:55]}  Qc8 {[%clk 0:02:44]} 11. Bxb7 {[%clk 0:02:54]}  Qxb7 {[%clk 0:02:45]} 12. e4 {[%clk 0:02:53]}  b5 {[%clk 0:02:43]} 13. a4 {[%clk 0:02:39]}  a6 {[%clk 0:02:26]} 14. b4 {[%clk 0:02:23]}  Qc6 {[%clk 0:02:20]} 15. Rfc1 {[%clk 0:02:17]}  Nb6 {[%clk 0:02:17]} 16. a5 {[%clk 0:01:59]}  Nc4 {[%clk 0:02:16]} 17. Nxc4 {[%clk 0:01:58]}  bxc4 {[%clk 0:02:17]} 18. Nd2 {[%clk 0:01:47]}  d5 {[%clk 0:02:17]} 19. Be5 {[%clk 0:00:55]}  Rae8 {[%clk 0:02:04]} 20. Bxf6 {[%clk 0:00:51]}  Bxf6 {[%clk 0:02:04]} 21. e5 {[%clk 0:00:52]}  Bg7 {[%clk 0:01:59]} 22. f4 {[%clk 0:00:48]}  f6 {[%clk 0:01:50]} 23. Nf3 {[%clk 0:00:49]}  fxe5 {[%clk 0:01:50]} 24. Nxe5 {[%clk 0:00:49]}  Bxe5 {[%clk 0:01:44]} 25. Qxe5 {[%clk 0:00:43]}  Qd6 {[%clk 0:01:44]} 26. Rf1 {[%clk 0:00:18]}  Rf5 {[%clk 0:01:40]} 27. Qe3 {[%clk 0:00:14]}  Ref8 {[%clk 0:01:40]} 28. g3 {[%clk 0:00:13]}  R8f6 {[%clk 0:01:38]} 29. Rae1 {[%clk 0:00:14]}  Kf7 {[%clk 0:01:38]} 30. Qd2 {[%clk 0:00:13]}  h5 {[%clk 0:01:23]} 31. Kg2 {[%clk 0:00:12]}  Ke8 {[%clk 0:01:21]} 32. Re5 {[%clk 0:00:12]}  Kd7 {[%clk 0:01:21]} 33. Qc2 {[%clk 0:00:11]}  Qc6 {[%clk 0:01:16]} 34. Rfe1 {[%clk 0:00:09]}  Rxe5 {[%clk 0:01:15]} 35. Rxe5 {[%clk 0:00:09]}  Rf5 {[%clk 0:01:15]} 36. h3 {[%clk 0:00:08]}  Kc8 {[%clk 0:01:10]} 37. Kf3 {[%clk 0:00:08]}  Kb7 {[%clk 0:01:10]} 38. g4 {[%clk 0:00:08]}  hxg4+ {[%clk 0:01:10]} 39. hxg4 {[%clk 0:00:09]}  Rxe5 {[%clk 0:01:07]} 40. fxe5 {[%clk 0:00:09]}  Qe8 {[%clk 0:01:05]} 41. Qd2 {[%clk 0:00:06]}  Qh8 {[%clk 0:01:03]} 42. Qg5 {[%clk 0:00:06]}  Qh1+ {[%clk 0:01:03]} 43. Ke2 {[%clk 0:00:04]}  Qe4+ {[%clk 0:01:03]} 44. Kf2 {[%clk 0:00:02]}  Qc2+ {[%clk 0:01:03]} 45. Kg1 {[%clk 0:00:02]}  Qxc3 {[%clk 0:01:03]} 46. Qf6 {[%clk 0:00:02]}  Qxd4+ {[%clk 0:01:03]} 47. Kf1 {[%clk 0:00:02]}  c3 {[%clk 0:01:04]} 0-1

[Event "January 9 Early 2024"]
[Site "https://www.chess.com"]
[Date "2024.01.11"]
[Round "8"]
[White "Sahin, Sarp"]
[Black "Sofronie, Claudia-Ramona"]
[Result "1-0"]
[Board "90"]
[TimeControl "180+1"]
[WhiteFideId "51605066"]
[BlackFideId "1205722"]
[WhiteElo "2429"]
[BlackElo "2262"]
[WhiteTeam "TUR"]
[BlackTeam "ROU"]
[WhiteClock "0:00:10"]
[BlackClock "0:00:17"]

1. e4 {[%clk 0:03:00]}  c5 {[%clk 0:02:59]} 2. Nf3 {[%clk 0:03:00]}  Nc6 {[%clk 0:02:58]} 3. d4 {[%clk 0:02:59]}  cxd4 {[%clk 0:02:55]} 4. Nxd4 {[%clk 0:03:00]}  Nf6 {[%clk 0:02:54]} 5. Nc3 {[%clk 0:02:59]}  d6 {[%clk 0:02:54]} 6. Bg5 {[%clk 0:02:53]}  e6 {[%clk 0:02:51]} 7. Qd2 {[%clk 0:02:49]}  a6 {[%clk 0:02:51]} 8. O-O-O {[%clk 0:02:47]}  Bd7 {[%clk 0:02:51]} 9. f4 {[%clk 0:02:46]}  b5 {[%clk 0:02:50]} 10. Bxf6 {[%clk 0:02:26]}  gxf6 {[%clk 0:02:49]} 11. Nxc6 {[%clk 0:02:13]}  Bxc6 {[%clk 0:02:47]} 12. f5 {[%clk 0:02:12]}  h5 {[%clk 0:02:42]} 13. Kb1 {[%clk 0:02:10]}  Qb6 {[%clk 0:02:29]} 14. fxe6 {[%clk 0:02:08]}  fxe6 {[%clk 0:02:29]} 15. Bd3 {[%clk 0:02:07]}  O-O-O {[%clk 0:02:18]} 16. Rhf1 {[%clk 0:02:05]}  Be7 {[%clk 0:02:17]} 17. Qe2 {[%clk 0:02:02]}  Kb8 {[%clk 0:02:14]} 18. a3 {[%clk 0:01:44]}  Rc8 {[%clk 0:02:03]} 19. h3 {[%clk 0:01:00]}  Bb7 {[%clk 0:02:01]} 20. Na2 {[%clk 0:00:54]}  Qc5 {[%clk 0:01:24]} 21. Qd2 {[%clk 0:00:40]}  d5 {[%clk 0:01:20]} 22. exd5 {[%clk 0:00:34]}  Bxd5 {[%clk 0:01:19]} 23. Nb4 {[%clk 0:00:32]}  Bb7 {[%clk 0:01:18]} 24. Be4 {[%clk 0:00:29]}  Rhd8 {[%clk 0:01:16]} 25. Bxb7 {[%clk 0:00:23]}  Rxd2 {[%clk 0:00:29]} 26. Nxa6+ {[%clk 0:00:20]}  Ka7 {[%clk 0:00:29]} 27. Nxc5 {[%clk 0:00:18]}  Rxd1+ {[%clk 0:00:26]} 28. Rxd1 {[%clk 0:00:18]}  Rxc5 {[%clk 0:00:26]} 29. Rd7 {[%clk 0:00:17]}  Bf8 {[%clk 0:00:23]} 30. Bf3+ {[%clk 0:00:13]}  Kb8 {[%clk 0:00:20]} 31. b4 {[%clk 0:00:10]}  Re5 {[%clk 0:00:18]} 32. Rd8+ {[%clk 0:00:10]}  Kc7 {[%clk 0:00:17]} 33. Rxf8 {[%clk 0:00:10]} 1-0